[Event "Begum Laila Alam 12th Women 2022"]
[Site "Dhaka"]
[Date "2022.05.08"]
[Round "4.5"]
[White "Sharmin, Khan"]
[Black "Wadifa, Ahmed"]
[Result "0-1"]
[ECO "B41"]
[WhiteElo "1309"]
[BlackElo "1791"]
[Annotator "NA RC COMBH"]
[PlyCount "56"]
[EventDate "2022.05.05"]
[EventType "swiss"]
[EventCountry "BAN"]
[SourceTitle "playchess.com"]
[Source "ChessBase"]
[SourceQuality "1"]
[TimeControl "5400+30"]

1. e4 {[%emt 0:00:03]} c5 {[%emt 0:00:05]} 2. Nf3 {[%emt 0:00:14]} e6 {[%emt 0:00:06]} 3. d4 {[%emt 0:00:43]} cxd4 {[%emt 0:00:06]} 4. Nxd4 {[%emt 0:00:11]} a6 {[%emt 0:00:01]} 5. c3 {[%emt 0:00:49]} Qc7 {[%emt 0:00:09]} 6. Bd3 {[%emt 0:01:38]} Nf6 {[%emt 0:02:30]} 7. Nd2 {[%emt 0:01:19]} Nc6 {[%emt 0:01:14]} 8. Nxc6 {[%emt 0:00:59]} bxc6 {[%emt 0:00:15]} 9. Nf3 {[%emt 0:01:08]} e5 {[%emt 0:01:14]} 10. O-O {[%emt 0:02:31]} Be7 {[%emt 0:01:43]} 11. Be3 {[%emt 0:03:02]} O-O {[%emt 0:00:36]} 12. Qe2 {[%emt 0:02:30]} h6 {[%emt 0:01:52]} 13. Nh4 {[%emt 0:01:18]} d5 {[%emt 0:01:37]} 14. exd5 {[%emt 0:02:43]} e4 {[%emt 0:01:08]} 15. Bc4 {[%emt 0:01:36]} cxd5 {[%emt 0:02:14]} 16. Bb3 {[%emt 0:00:29]} Be6 {[%emt 0:01:08]} 17. f3 {[%emt 0:02:36]} a5 {[%emt 0:12:12]} 18. Bc2 {[%emt 0:04:41]} g5 {[%emt 0:10:36]} 19. g3 {[%emt 0:03:50]} gxh4 {[%emt 0:12:48]} 20. gxh4 {[%emt 0:00:35]} Kh7 {[%emt 0:02:00]} 21. Kh1 {[%emt 0:01:50]} Rg8 {[%emt 0:01:24]} 22. Rg1 {[%emt 0:05:22]} Bc5 {[%emt 0:04:48]} 23. Bxc5 {[%emt 0:03:03]} Qxc5 {[%emt 0:00:02]} 24. fxe4 {[%emt 0:06:56]} dxe4 {[%emt 0:00:13]} 25. Bxe4+ {[%emt 0:01:28]} Nxe4 {[%emt 0:00:02]} 26. Qxe4+ {[%emt 0:00:31]} Bf5 {[%emt 0:00:15]} 27. Qf4 {[%emt 0:06:45]} Qd5+ {[%emt 0:00:16]} 28. Rg2 {[%emt 0:00:57]} Qxg2# {[%emt 0:00:04]} 0-1

[Event "Begum Laila Alam 12th Women 2022"]
[Site "Dhaka"]
[Date "2022.05.08"]
[Round "4.6"]
[White "Sumi, Akter"]
[Black "Sultana, Zakia"]
[Result "0-1"]
[ECO "D02"]
[WhiteElo "1287"]
[BlackElo "1777"]
[Annotator "NA RC COMBH"]
[PlyCount "111"]
[EventDate "2022.05.05"]
[EventType "swiss"]
[EventCountry "BAN"]
[SourceTitle "playchess.com"]
[Source "ChessBase"]
[SourceQuality "1"]
[TimeControl "5400+30"]

1. d4 {[%emt 0:00:02]} d5 {[%emt 0:00:10]} 2. Bf4 {[%emt 0:00:10]} Nf6 {[%emt 0:00:42]} 3. e3 {[%emt 0:00:18]} Bf5 {[%emt 0:00:20]} 4. Nf3 {[%emt 0:00:17]} e6 {[%emt 0:00:08]} 5. Bd3 {[%emt 0:00:18]} Bxd3 {[%emt 0:00:26]} 6. Qxd3 {[%emt 0:00:14]} c6 {[%emt 0:00:09]} 7. c3 {[%emt 0:00:48]} Nbd7 {[%emt 0:00:16]} 8. Nbd2 {[%emt 0:00:31]} Be7 {[%emt 0:00:31]} 9. Ne5 {[%emt 0:02:09]} Nxe5 {[%emt 0:01:45]} 10. Bxe5 {[%emt 0:00:43]} O-O {[%emt 0:00:47]} 11. Nf3 {[%emt 0:01:05]} Ne4 {[%emt 0:00:43]} 12. Bg3 {[%emt 0:00:32]} Rc8 {[%emt 0:03:27]} 13. Nd2 {[%emt 0:03:46]} Nxd2 {[%emt 0:02:20]} 14. Qxd2 {[%emt 0:00:31]} c5 {[%emt 0:00:16]} 15. O-O {[%emt 0:01:13]} Qd7 {[%emt 0:02:42]} 16. a3 {[%emt 0:01:41]} b5 {[%emt 0:02:15]} 17. Qe2 {[%emt 0:02:48]} Rfe8 {[%emt 0:01:55]} 18. Qg4 {[%emt 0:00:51]} Bf6 {[%emt 0:01:24]} 19. Rfe1 {[%emt 0:04:02]} Qc6 {[%emt 0:00:59]} 20. Bh4 {[%emt 0:03:56]} Bxh4 {[%emt 0:03:30]} 21. Qxh4 {[%emt 0:00:20]} f5 {[%emt 0:00:51]} 22. f4 {[%emt 0:00:26]} Rf8 {[%emt 0:00:41]} 23. Rf1 {[%emt 0:00:32]} Rf6 {[%emt 0:00:14]} 24. Rf3 {[%emt 0:00:31]} Qb7 {[%emt 0:03:03]} 25. Rg3 {[%emt 0:00:28]} Kf8 {[%emt 0:03:40]} 26. Rh3 {[%emt 0:03:22]} Rh6 {[%emt 0:02:22]} 27. Qg3 {[%emt 0:01:29]} Rg6 {[%emt 0:00:29]} 28. Qh4 {[%emt 0:00:32]} h6 {[%emt 0:03:34]} 29. Qh5 {[%emt 0:01:42]} Rf6 {[%emt 0:00:56]} 30. Qf3 {[%emt 0:03:46]} a5 {[%emt 0:01:30]} 31. Qe2 {[%emt 0:02:20]} Qb6 {[%emt 0:02:23]} 32. Rb1 {[%emt 0:04:00]} b4 {[%emt 0:00:51]} 33. axb4 {[%emt 0:06:06]} axb4 {[%emt 0:00:50]} 34. dxc5 {[%emt 0:02:59]} Qxc5 {[%emt 0:00:39]} 35. cxb4 {[%emt 0:02:38]} Qxb4 {[%emt 0:00:22]} 36. Rg3 {[%emt 0:03:30]} Rc4 {[%emt 0:01:43]} 37. Ra1 {[%emt 0:01:27]} Qb7 {[%emt 0:01:50]} 38. Qd2 {[%emt 0:03:11]} Rb4 {[%emt 0:01:47]} 39. Ra8+ {[%emt 0:01:56]} Kf7 {[%emt 0:06:51]} 40. Ra2 {[%emt 0:05:38]} Kg8 {[%emt 0:02:48]} 41. Ra8+ {[%emt 0:01:33]} Kh7 {[%emt 0:00:26]} 42. Ra2 {[%emt 0:00:49]} Rf7 {[%emt 0:01:06]} 43. Qc3 {[%emt 0:01:54]} Rc7 {[%emt 0:02:27]} 44. Qd2 {[%emt 0:00:54]} Rbc4 {[%emt 0:00:38]} 45. Rf3 {[%emt 0:02:49]} Rc1+ {[%emt 0:04:37]} 46. Rf1 {[%emt 0:00:42]} R1c2 {[%emt 0:00:16]} 47. Qd4 {[%emt 0:02:09]} Qb3 {[%emt 0:01:44]} 48. Rfa1 {[%emt 0:02:09]} Rc1+ {[%emt 0:07:00]} 49. Kf2 {[%emt 0:01:24]} R1c4 {[%emt 0:04:26]} 50. Qe5 {[%emt 0:01:12]} Qc2+ {[%emt 0:00:30]} 51. Kf3 {[%emt 0:00:38]} Re4 {[%emt 0:00:57]} 52. Qd6 {[%emt 0:02:07]} Qb3 {[%emt 0:02:02]} 53. Ra3 {[%emt 0:02:15]} Rxe3+ {[%emt 0:00:45]} 54. Kf2 {[%emt 0:24:07]} Rc2+ {[%emt 0:28:27]} 55. Kf1 {[%emt 0:00:00]} Qc4+ {[%emt 0:00:00]} 56. Kg1 {[%emt 0:01:00]} 0-1

[Event "Begum Laila Alam 12th Women 2022"]
[Site "Dhaka"]
[Date "2022.05.09"]
[Round "5.1"]
[White "Khan, Nazrana"]
[Black "Sultana, Sharmin Shirin"]
[Result "0-1"]
[ECO "D12"]
[WhiteElo "1829"]
[BlackElo "1992"]
[Annotator "TA"]
[PlyCount "108"]
[EventDate "2022.05.05"]
[EventType "swiss"]
[EventCountry "BAN"]
[SourceTitle "playchess.com"]
[Source "ChessBase"]
[SourceQuality "1"]
[TimeControl "5400+30"]

{[%evp 9,108,0,31,12,84,74,92,45,41,35,45,0,35,0,0,-2,-6,-6,0,0,0,0,18,0,18,4,12,8,0,0,0,-8,25,-14,0,0,16,15,0,4,16,-11,18,21,27,-17,48,23,96,90,114,114,113,102,100,45,31,4,55,15,15,0,0,-6,0,0,15,5,27,31,39,31,41,20,28,8,22,0,0,0,12,-139,-175,-414,-413,-404,-410,-434,-423,-415,-284,-373,-357,-2648,-2400,-1746,-1380,-1437,-1356,-1581,-1195]} 1. d4 {[%emt 0:00:04]} d5 {[%emt 0:00:23]} 2. c4 {[%emt 0:00:07]} c6 {[%emt 0:00:05]} 3. Nf3 {[%emt 0:00:08]} Nf6 {[%emt 0:00:05]} 4. e3 {[%emt 0:00:14]} Bf5 {[%emt 0:02:06]} 5. Qb3 {[%emt 0:01:23]} Qc8 {[%emt 0:06:37]} 6. cxd5 {[%emt 1:31:34] [#] D12: Slav Defence: 3 Nf3 Nf6 4 e3 Bf5.} Nxd5 $146 {[%emt 0:00:24]} (6... cxd5 $11 {remains equal.} 7. Nc3 e6) ({Predecessor:} 6... cxd5 7. Nc3 e6 8. Bb5+ Nfd7 9. Bd2 Nc6 10. O-O a6 11. Be2 Be7 12. Rfc1 O-O 13. Na4 b5 14. Nc5 Nxc5 15. dxc5 {0-1 (33) De Francesco,K (2178)-Rozman,M (2159) Austria 2021}) 7. Nc3 {[%emt 0:00:00]} e6 {[%emt 0:01:11]} 8. Be2 {[%emt 0:00:00]} (8. e4 $16 Nxc3 9. exf5 (9. bxc3 Bxe4 10. Ng5 Bg6 $15)) 8... Be7 $14 {[%emt 0:05:21]} 9. O-O {[%emt 0:00:00]} O-O {[%emt 0:00:17]} 10. Bd2 {[%emt 0:00:00]} a5 {[%emt 0:06:17]} 11. a3 {[%emt 0:00:00]} Nd7 {[%emt 0:01:58]} 12. Rac1 {[%emt 0:00:00]} Qb8 {[%emt 0:06:33]} 13. h3 {[%emt 0:00:00]} h6 {[%emt 0:12:49]} 14. Rfe1 {[%emt 0:00:00]} Bg6 {[%emt 0:08:29]} 15. Bf1 {[%emt 0:00:00]} Bh5 {[%emt 0:07:39]} 16. Be2 {[%emt 0:00:00][%cal Of3e5]} N7f6 {[%emt 0:05:06]} 17. Ne5 {[%emt 0:00:00] [#] Black must now prevent Bxh5.} Bxe2 {[%emt 0:02:01]} (17... Nxc3 {feels hotter.} 18. Bxh5 Nce4 19. Bxf7+ Rxf7 20. Qxe6 Qf8) 18. Rxe2 {[%emt 0:00:00]} Nxc3 {[%emt 0:08:48]} 19. bxc3 {[%emt 0:00:00]} a4 {[%emt 0:03:57]} 20. Qa2 {[%emt 0:00:00]} Bd6 {[%emt 0:02:00]} 21. Nc4 {[%emt 0:00:00]} Bc7 {[%emt 0:00:24]} 22. e4 {[%emt 0:00:00]} e5 {[%emt 0:03:26]} 23. Nxe5 {[%emt 0:00:00]} Bxe5 {[%emt 0:00:02]} 24. dxe5 {[%emt 0:00:00]} Qxe5 {[%emt 0:00:03]} 25. Rce1 {[%emt 0:00:00]} Rfe8 {[%emt 0:00:47]} 26. c4 {[%emt 0:00:00]} Nd7 {[%emt 0:03:46]} 27. Qc2 {[%emt 0:00:00]} Qh5 {[%emt 0:03:07]} (27... Nc5 $11) 28. Re3 {[%emt 0:00:00][%cal Oe4e5]} b5 {[%emt 0:01:22]} (28... Nc5 $11 {keeps the balance.}) 29. Rg3 $16 {[%emt 0:00:00]} Rad8 {[%emt 0:01:06]} 30. Bc3 {[%emt 0:00:00]} f6 {[%emt 0:01:34]} 31. cxb5 {[%emt 0:00:00]} cxb5 {[%emt 0:00:33]} 32. Ba5 {[%emt 0:00:00]} (32. f4 $16) 32... Rc8 $14 {[%emt 0:00:36]} 33. Qd2 {[%emt 0:00:00]} Nc5 {[%emt 0:00:47]} (33... Ne5 $1 $11) 34. Qd4 {[%emt 0:00:00]} (34. Bc3 $5 {[%cal Rc3f6]}) 34... Qe5 {[%emt 0:01:15]} 35. Qxe5 {[%emt 0:00:00]} (35. Qd1 {seems wilder.} Nxe4 36. Rge3 f5 37. Qd7) 35... Rxe5 {[%emt 0:00:03]} 36. Rge3 {[%emt 0:00:00]} Rce8 {[%emt 0:02:35][%cal Re5e4]} 37. f3 {[%emt 0:00:00]} R5e6 {[%emt 0:01:26][%cal Be5e6,Be6c6,Bc6c2][%mdl 32]} 38. Bb4 {[%emt 0:00:00]} Nd7 {[%emt 0:00:16]} 39. Rd1 {[%emt 0:00:00]} Nb6 {[%emt 0:00:30][%cal Of6f5]} 40. Red3 {[%emt 0:00:40]} Rc6 {[%emt 0:02:23]} 41. Rd8 {[%emt 0:01:05]} Kf7 {[%emt 0:00:37]} 42. Kh2 {[%emt 0:03:25]} Rc2 {[%emt 0:01:13]} 43. R8d6 {[%emt 0:01:50]} (43. R8d2 $5 {[%cal Rd2c2]} Rec8 44. Kg3 $14) 43... Nc4 {[%emt 0:00:23]} 44. Rd7+ {[%emt 0:01:02]} Kg6 {[%emt 0:00:10]} 45. R1d5 $2 {[%emt 0:04:33] [#]} (45. h4 $11) 45... Ne3 $1 $17 {[%emt 0:00:34][%csl LRd5,LRg2]} 46. Bd2 $2 {[%emt 0:02:23]} (46. Rxb5 {was worth a try.} Rxg2+ 47. Kh1) 46... Nxd5 $19 {[%emt 0:00:22] Active counter play!} 47. Rxd5 {[%emt 0:00:20][%mdl 4096] Endgame KRR-KRB} Re5 {[%emt 0:00:38]} 48. Rd6 {[%emt 0:00:19]} Kf7 {[%emt 0:00:55]} 49. h4 {[%emt 0:01:34]} h5 {[%emt 0:00:26]} 50. Bb4 {[%emt 0:00:19]} g5 {[%emt 0:00:43]} 51. Rd5 $2 {[%emt 0:01:28]} (51. Rd7+ Ke8 52. Rb7) 51... Rxd5 {[%emt 0:01:03] Black is clearly winning.} 52. exd5 {[%emt 0:00:02]} Rb2 {[%emt 0:00:22][%cal Ob2b4] Hoping for ...Rxb4!} 53. Bc5 {[%emt 0:00:51]} b4 {[%emt 0:00:45] Threatens to win with ...b3.} 54. hxg5 {[%emt 0:00:22]} fxg5 {[%emt 0:00:09] Weighted Error Value: White=0.49/Black=0.25 (precise)} 0-1

[Event "Begum Laila Alam 12th Women 2022"]
[Site "Dhaka"]
[Date "2022.05.09"]
[Round "5.2"]
[White "Hamid, Rani"]
[Black "Nusrat Jahan, Alo"]
[Result "1-0"]
[ECO "C02"]
[WhiteElo "1783"]
[BlackElo "1652"]
[Annotator "NA RC COMBH"]
[PlyCount "69"]
[EventDate "2022.05.05"]
[EventType "swiss"]
[EventCountry "BAN"]
[SourceTitle "playchess.com"]
[Source "ChessBase"]
[SourceQuality "1"]
[TimeControl "5400+30"]

1. e4 {[%emt 0:00:07]} c6 {[%emt 0:02:32]} 2. d4 {[%emt 0:00:10]} d5 {[%emt 0:00:18]} 3. e5 {[%emt 0:00:08]} Bf5 {[%emt 0:00:18]} 4. Nf3 {[%emt 0:00:07]} e6 {[%emt 0:00:06]} 5. Bd3 {[%emt 0:00:54]} Bxd3 {[%emt 0:01:18]} 6. Qxd3 {[%emt 0:00:02]} c5 {[%emt 0:00:43]} 7. c3 {[%emt 0:01:05]} Qb6 {[%emt 0:02:00]} 8. O-O {[%emt 0:00:34]} Nc6 {[%emt 0:02:07]} 9. Nbd2 {[%emt 0:01:18]} cxd4 {[%emt 0:04:09]} 10. cxd4 {[%emt 0:00:04]} Nh6 {[%emt 0:01:17]} 11. Nb3 {[%emt 0:04:54]} Nf5 {[%emt 0:02:03]} 12. Bd2 {[%emt 0:06:34]} Be7 {[%emt 0:01:49]} 13. Rac1 {[%emt 0:01:49]} O-O {[%emt 0:01:58]} 14. Rfd1 {[%emt 0:03:48]} Rac8 {[%emt 0:02:13]} 15. Bg5 {[%emt 0:00:52]} h6 {[%emt 0:12:25]} 16. Bxe7 {[%emt 0:00:23]} Nfxe7 {[%emt 0:00:32]} 17. Rc3 {[%emt 0:02:51]} Na5 {[%emt 0:05:27]} 18. Nc5 {[%emt 0:01:04]} Rc7 {[%emt 0:08:02]} 19. b3 {[%emt 0:02:46]} Nac6 {[%emt 0:07:26]} 20. Rdc1 {[%emt 0:03:54]} Qa5 {[%emt 0:05:31]} 21. Qd2 {[%emt 0:02:52]} Nb4 {[%emt 0:02:52]} 22. Na4 {[%emt 1:05:14]} Rxc3 {[%emt 0:04:14]} 23. Rxc3 {[%emt 0:00:00]} Rc8 {[%emt 0:04:18]} 24. Rxc8+ {[%emt 0:00:00]} Nxc8 {[%emt 0:01:03]} 25. Nc5 {[%emt 0:00:00]} Qb5 {[%emt 0:05:07]} 26. a4 {[%emt 0:00:00]} Qb6 {[%emt 0:02:01]} 27. g4 {[%emt 0:00:00]} Na6 {[%emt 0:03:04]} 28. Nxa6 {[%emt 0:00:00]} Qxa6 {[%emt 0:00:15]} 29. g5 {[%emt 0:00:00]} h5 {[%emt 0:02:14]} 30. g6 {[%emt 0:00:00]} fxg6 {[%emt 0:02:57]} 31. Qg5 {[%emt 0:00:00]} Qb6 {[%emt 0:06:29]} 32. Qxg6 {[%emt 0:00:00]} Qxb3 {[%emt 0:02:22]} 33. Qxe6+ {[%emt 0:00:00]} Kh8 {[%emt 0:00:58]} 34. Qxc8+ {[%emt 0:00:00]} Kh7 {[%emt 0:00:08]} 35. Qf5+ {[%emt 0:00:00]} 1-0

[Event "Begum Laila Alam 12th Women 2022"]
[Site "Dhaka"]
[Date "2022.05.09"]
[Round "5.3"]
[White "Noshin, Anjum"]
[Black "Tasnia Tarannum, Orpa"]
[Result "1-0"]
[ECO "B15"]
[WhiteElo "2065"]
[BlackElo "1691"]
[Annotator "TA"]
[PlyCount "105"]
[EventDate "2022.05.05"]
[EventType "swiss"]
[EventCountry "BAN"]
[SourceTitle "playchess.com"]
[Source "ChessBase"]
[SourceQuality "1"]
[TimeControl "5400+30"]

{[%evp 14,105,20,16,16,27,50,23,20,16,16,15,19,20,14,0,0,0,19,0,10,0,0,0,0,-41,-31,-89,22,-106,-101,-106,-97,-103,-60,-64,-62,-61,-10,-77,-93,-81,-72,-78,-75,-85,0,-74,23,23,188,180,182,185,187,156,172,142,168,164,175,168,157,154,395,393,466,483,547,535,490,500,559,548,552,0,523,495,572,540,664,652,715,656,2487,2437,2255,2206,1862,1791,29974,29975,5675,641]} 1. e4 {[%emt 0:00:04]} c6 {[%emt 0:00:01]} 2. d4 {[%emt 0:00:08]} d5 {[%emt 0:00:04]} 3. Nc3 {[%emt 0:00:09]} dxe4 {[%emt 0:00:05]} 4. Nxe4 {[%emt 0:00:06]} Nf6 {[%emt 0:00:05]} 5. Nxf6+ {[%emt 0:00:07]} exf6 {[%emt 0:00:06]} 6. c3 {[%emt 0:00:05]} Bd6 {[%emt 0:00:07]} 7. Bd3 {[%emt 0:00:08]} O-O {[%emt 0:00:17]} 8. Qc2 {[%emt 0:00:14] Active counter play!} Re8+ {[%emt 0:00:03] B15: Caro-Kann: 3 Nc3: 3...g6 and 3...dxe4 4 Nxe4 Nf6 5 Nxf6+ exf6.} 9. Ne2 {[%emt 0:00:05]} h5 {[%emt 0:00:04]} 10. Be3 {[%emt 0:00:07]} Nd7 {[%emt 0:01:23] White has an edge.} 11. O-O-O {[%emt 0:00:13]} Nf8 {[%emt 0:00:43]} 12. Kb1 {[%emt 0:00:25]} Be6 {[%emt 0:00:24]} 13. c4 {[%emt 0:00:28]} Rc8 {[%emt 0:00:46]} 14. h3 {[%emt 0:00:59][%cal Og2g4]} b5 {[%emt 0:02:14]} 15. c5 {[%emt 0:01:39]} Bb8 {[%emt 0:02:58]} 16. g4 {[%emt 0:08:48]} Bd5 {[%emt 0:01:55] [#]} ({Don't do} 16... hxg4 17. hxg4 Bd5 18. Rh3 $14 (18. Bh7+ Nxh7 19. Qxh7+ Kf8 $15)) 17. Rhe1 $146 {[%emt 0:11:29]} ({Predecessor:} 17. Rhg1 h4 18. g5 Bh2 19. Rg4 Bf3 20. gxf6 Qxf6 21. Bg5 Qe6 22. Rxh4 Ng6 23. d5 cxd5 24. Rd2 Nxh4 25. Bxh4 Qh6 {0-1 (25) Haussernot,C (2188)-Ahmad,A (2226) Marmaris 2022}) 17... Bf3 {[%emt 0:05:59]} 18. gxh5 {[%emt 0:05:14]} Bxh5 {[%emt 0:00:30]} 19. Rc1 {[%emt 0:06:13]} a5 {[%emt 0:16:34]} 20. Ng3 {[%emt 0:08:04]} (20. Rg1 $15) 20... Bg6 {[%emt 0:07:23]} (20... Bxg3 $17 21. fxg3 Bg6) 21. Rcd1 {[%emt 0:05:01]} (21. Nf5 $1 $11) 21... Bxd3 {[%emt 0:08:08]} 22. Qxd3 {[%emt 0:07:16]} Bxg3 {[%emt 0:02:05]} 23. fxg3 {[%emt 0:00:05]} Qd7 {[%emt 0:00:26]} 24. g4 {[%emt 0:04:49]} Rcd8 {[%emt 0:01:27]} 25. Bf2 {[%emt 0:02:31]} Qd5 {[%emt 0:10:47]} ({Better is} 25... Ne6 $15) 26. Bg3 {[%emt 0:03:10]} (26. Rxe8 $11 Rxe8 27. Qb3) 26... Rxe1 $17 {[%emt 0:04:38]} 27. Bxe1 {[%emt 0:00:18]} a4 {[%emt 0:03:59]} 28. Bg3 {[%emt 0:06:16]} Re8 {[%emt 0:02:50]} 29. Bd6 {[%emt 0:07:22]} Nh7 {[%emt 0:02:26]} (29... Re4 $17 {Threatens to win with ...Ne6.} 30. Bxf8 Kxf8) 30. h4 {[%emt 0:06:52]} (30. Qf5 $1 $11 {keeps the balance.}) 30... Qg2 {[%emt 0:01:44]} (30... Re4 $17 31. Qf3 f5 32. Qxf5 (32. gxf5 Nf6 $17) 32... Nf6) 31. d5 $11 {[%emt 0:13:33]} Rd8 $2 {[%emt 0:21:36] White now steadily converts the win.} (31... Re2 $11 {and Black is okay.} 32. Qc3 Nf8) 32. dxc6 $18 {[%emt 0:00:11]} Qxc6 {[%emt 0:00:13]} 33. Qd5 {[%emt 0:03:00]} Qxd5 {[%emt 0:03:56]} 34. Rxd5 {[%emt 0:00:06][%mdl 4096] [#] Endgame Hoping for c6. KRB-KRN} Nf8 {[%emt 0:00:02]} 35. b4 {[%emt 0:00:15]} Ne6 {[%emt 0:00:31]} 36. Rd2 {[%emt 0:00:33]} Rc8 {[%emt 0:00:48]} 37. Kc2 {[%emt 0:00:25]} Kh7 {[%emt 0:01:04]} 38. Kd3 {[%emt 0:00:17] Black must now prevent Ke4.} g6 $2 {[%emt 0:00:32] [#]} (38... Re8 $16 {keeps fighting.} 39. a3 Kg6) 39. Ke4 {[%emt 0:00:22]} Nd8 {[%emt 0:00:18]} 40. a3 {[%emt 0:01:21]} Nc6 {[%emt 0:00:05]} 41. Kd5 {[%emt 0:00:14]} Kg7 {[%emt 0:01:06]} 42. Re2 {[%emt 0:00:13]} Kg8 {[%emt 0:00:37]} 43. Bg3 {[%emt 0:01:42]} Kf8 {[%emt 0:00:23]} 44. Bd6+ $2 {[%emt 0:01:20]} (44. Bf4 $18 Kg8 45. Bd6) 44... Kg7 $2 {[%emt 0:00:16][%mdl 8192]} (44... Kg8 $1 $11 {and Black has nothing to worry.} 45. Rf2 Kg7) 45. Re1 {[%emt 0:00:20]} Kh7 {[%emt 0:00:46]} 46. Bg3 {[%emt 0:00:05]} Kg7 {[%emt 0:00:15]} 47. Kd6 {[%emt 0:00:44]} Nb8 {[%emt 0:00:28]} 48. Rc1 {[%emt 0:00:51]} Rc6+ {[%emt 0:00:29]} 49. Kd5 {[%emt 0:00:06]} Rc8 {[%emt 0:00:35]} 50. Bxb8 {[%emt 0:00:05]} Rxb8 {[%emt 0:00:13]} 51. c6 {[%emt 0:00:01][%cal Bc5c6,Bc6c7][%mdl 32]} Kf8 {[%emt 0:00:14]} 52. c7 {[%emt 0:00:05]} Rc8 {[%emt 0:00:16]} 53. Ke4 {[%emt 0:02:46] Weighted Error Value: White=0.26 (precise) /Black=0.70} (53. Kd6 $142 Ke8 54. Re1+ Kf8 55. Kd7) 1-0

[Event "Begum Laila Alam 12th Women 2022"]
[Site "Dhaka"]
[Date "2022.05.09"]
[Round "5.4"]
[White "Kazi Zarin, Tasnim"]
[Black "Omnia Binta Yusuf, Lubaba"]
[Result "1/2-1/2"]
[ECO "B13"]
[WhiteElo "1899"]
[BlackElo "1652"]
[Annotator "NA RC COMBH"]
[PlyCount "159"]
[EventDate "2022.05.05"]
[EventType "swiss"]
[EventCountry "BAN"]
[SourceTitle "playchess.com"]
[Source "ChessBase"]
[SourceQuality "1"]
[TimeControl "5400+30"]

1. e4 {[%emt 0:00:01]} c6 {[%emt 0:03:51]} 2. d4 {[%emt 0:00:43]} d5 {[%emt 0:00:06]} 3. exd5 {[%emt 0:00:17]} cxd5 {[%emt 0:00:06]} 4. Bd3 {[%emt 0:00:32]} Nc6 {[%emt 0:00:31]} 5. c3 {[%emt 0:00:04]} Nf6 {[%emt 0:00:20]} 6. Bf4 {[%emt 0:01:08]} e6 {[%emt 0:00:24]} 7. Nf3 {[%emt 0:01:36]} Bd6 {[%emt 0:01:19]} 8. Bxd6 {[%emt 0:00:51]} Qxd6 {[%emt 0:00:07]} 9. O-O {[%emt 0:00:08]} O-O {[%emt 0:00:17]} 10. Re1 {[%emt 0:00:04]} b6 {[%emt 0:01:44]} 11. Nbd2 {[%emt 0:01:40]} Bb7 {[%emt 0:01:42]} 12. Ne5 {[%emt 0:03:44]} a5 {[%emt 0:06:29]} 13. Qe2 {[%emt 0:01:30]} Nb8 {[%emt 0:03:06]} 14. Ng4 {[%emt 0:13:45]} Nbd7 {[%emt 0:03:12]} 15. Nxf6+ {[%emt 0:01:51]} Nxf6 {[%emt 0:00:12]} 16. Nf3 {[%emt 0:00:25]} Rfb8 {[%emt 0:01:58]} 17. Ne5 {[%emt 0:01:36]} Qc7 {[%emt 0:08:36]} 18. Rac1 {[%emt 0:03:21]} Qe7 {[%emt 0:03:18]} 19. Qf3 {[%emt 0:09:41]} a4 {[%emt 0:03:27]} 20. Re3 {[%emt 0:01:06]} Ne4 {[%emt 0:02:28]} 21. Qe2 {[%emt 0:01:59]} Qe8 {[%emt 0:13:03]} 22. Bb5 {[%emt 0:03:13]} Qd8 {[%emt 0:04:54]} 23. Nc6 {[%emt 0:02:21]} Bxc6 {[%emt 0:00:11]} 24. Bxc6 {[%emt 0:00:05]} Ra7 {[%emt 0:00:35]} 25. Bb5 {[%emt 0:02:20]} Qg5 {[%emt 0:02:54]} 26. Bd3 {[%emt 0:05:27]} Nd6 {[%emt 0:02:05]} 27. Re1 {[%emt 0:00:42]} b5 {[%emt 0:01:28]} 28. Rg3 {[%emt 0:01:25]} Qf6 {[%emt 0:00:51]} 29. Rh3 {[%emt 0:01:17]} g6 {[%emt 0:00:52]} 30. Qc2 {[%emt 0:05:40]} Rc7 {[%emt 0:03:40]} 31. Rf3 {[%emt 0:01:47]} Qg7 {[%emt 0:01:42]} 32. Qd2 {[%emt 0:02:38]} Nc4 {[%emt 0:02:07]} 33. Qf4 {[%emt 0:00:04]} Rcb7 {[%emt 0:01:15]} 34. b3 {[%emt 0:03:02]} axb3 {[%emt 0:00:58]} 35. axb3 {[%emt 0:00:06]} Na5 {[%emt 0:00:27]} 36. b4 {[%emt 0:02:23]} Nc6 {[%emt 0:01:11]} 37. Qd6 {[%emt 0:04:09]} Na7 {[%emt 0:02:18]} 38. Ra1 {[%emt 0:00:39]} Nc8 {[%emt 0:01:46]} 39. Qd8+ {[%emt 0:01:15]} Qf8 {[%emt 0:00:06]} 40. Qg5 {[%emt 0:01:01]} Ra7 {[%emt 0:01:35]} 41. Rxa7 {[%emt 0:03:53]} Nxa7 {[%emt 0:00:08]} 42. h4 {[%emt 0:00:03]} Rc8 {[%emt 0:03:10]} 43. h5 {[%emt 0:01:41]} Rxc3 {[%emt 0:02:21]} 44. hxg6 {[%emt 0:00:40]} hxg6 {[%emt 0:00:37]} 45. Rh3 {[%emt 0:01:27]} Nc6 {[%emt 0:02:08]} 46. Qd2 {[%emt 0:02:53]} Rb3 {[%emt 0:03:21]} 47. Qg5 {[%emt 0:04:56]} Qg7 {[%emt 0:07:10]} 48. Qc1 {[%emt 0:02:04]} Ne7 {[%emt 0:01:18]} 49. Qc5 {[%emt 0:01:08]} Qf8 {[%emt 0:01:32]} 50. Qxb5 {[%emt 0:01:24]} Qc8 {[%emt 0:01:07]} 51. Rg3 {[%emt 0:07:06]} Qc1+ {[%emt 0:01:04]} 52. Kh2 {[%emt 0:00:29]} Qh6+ {[%emt 0:00:45]} 53. Rh3 {[%emt 0:00:01]} Qf4+ {[%emt 0:00:16]} 54. Kg1 {[%emt 0:00:10]} Qc1+ {[%emt 0:00:33]} 55. Kh2 {[%emt 0:01:40]} Qf4+ {[%emt 0:00:16]} 56. Kg1 {[%emt 0:01:18]} Qc1+ {[%emt 0:00:07]} 57. Bf1 {[%emt 0:00:11]} Rxh3 {[%emt 0:00:23]} 58. gxh3 {[%emt 0:00:39]} Qg5+ {[%emt 0:00:59]} 59. Kh1 {[%emt 0:00:25]} Nf5 {[%emt 0:01:39]} 60. Qb8+ {[%emt 0:00:31]} Kh7 {[%emt 0:01:00]} 61. Qe5 {[%emt 0:00:02]} Qh5 {[%emt 0:01:26]} 62. Qf6 {[%emt 0:01:07]} Kg8 {[%emt 0:01:15]} 63. b5 {[%emt 0:01:16]} Qf3+ {[%emt 0:01:20]} 64. Kg1 {[%emt 0:00:20]} Qb3 {[%emt 0:00:43]} 65. Qd8+ {[%emt 0:00:32]} Kg7 {[%emt 0:00:10]} 66. Qc7 {[%emt 0:00:25]} Nh4 {[%emt 0:00:54]} 67. b6 {[%emt 0:00:58]} Nf3+ {[%emt 0:00:26]} 68. Kg2 {[%emt 0:00:40]} Nh4+ {[%emt 0:00:08]} 69. Kh2 {[%emt 0:00:40]} Nf3+ {[%emt 0:00:16]} 70. Kh1 {[%emt 0:00:12]} Qd1 {[%emt 0:00:33]} 71. Kg2 {[%emt 0:00:14]} Nh4+ {[%emt 0:00:25]} 72. Kg1 {[%emt 0:00:38]} Nf3+ {[%emt 0:00:10]} 73. Kg2 {[%emt 0:00:08]} Nh4+ {[%emt 0:00:04]} 74. Kg1 {[%emt 0:01:27]} Nf3+ {[%emt 0:00:07]} 75. Kg2 {[%emt 0:00:12]} Nh4+ {[%emt 0:00:06]} 76. Kg1 {[%emt 0:00:47]} Qb3 {[%emt 0:03:22]} 77. Qg3 Kh7 {[%emt 0:00:30]} 78. Kh1 Nf5 {[%emt 0:00:30]} 79. Qc7 Qf3+ {[%emt 0:00:30]} 80. Kg1 {[%emt 0:02:37]} 1/2-1/2